bitfinex/quotes_BTCUSD_20210402
["timestamp","ask_amount","ask_price","bid_price","bid_amount"]
[1617335022249,0.00303724,59810.0,59791.0,0.36112]
[1617335022452,0.00303724,59815.0,59792.0,1.6140741]
[1617335022650,0.00303724,59815.0,59793.0,1.35105636]
[1617335022852,0.94,59823.0,59796.0,0.0042]
[1617335023052,0.0004,59827.0,59798.0,0.34117674]
[1617335023248,0.0004,59827.0,59799.0,1.26785536]
[1617335023452,0.251049,59825.0,59810.0,3.251]
[1617335023655,0.251049,59825.0,59810.0,0.674564]
[1617335023855,0.0004,59827.0,59810.0,0.674564]
[1617335024649,0.251062,59821.0,59810.0,3.214564]
[1617335024848,0.334773,59824.0,59810.0,3.214564]
[1617335025246,0.334773,59824.0,59810.0,2.90283]
[1617335025669,0.0004,59827.0,59810.0,2.90283]
[1617335025866,0.251062,59820.0,59810.0,2.90283]
[1617335028498,0.0004,59827.0,59817.0,0.34117674]
[1617335028696,0.0004,59827.0,59818.0,0.311679]
[1617335029095,0.0004,59827.0,59815.0,0.06738]
[1617335030091,0.0004,59827.0,59816.0,0.31169]
[1617335030291,0.0004,59827.0,59815.0,0.06738]
[1617335031526,0.0004,59827.0,59815.0,0.004]
[1617335031776,0.251047,59823.0,59810.0,2.54]
[1617335032173,0.301047,59823.0,59810.0,2.54]
[1617335032369,0.05,59823.0,59811.0,0.311718]
[1617335032581,0.0004,59827.0,59811.0,0.311718]
[1617335032772,0.0004,59827.0,59810.0,2.54]
[1617335032971,0.0004,59827.0,59811.0,0.31172]
[1617335033172,0.0004,59827.0,59812.0,0.36]
[1617335033369,0.0004,59827.0,59810.0,2.54]
[1617335033769,0.251061,59820.0,59810.0,2.54]
[1617335033970,0.251061,59820.0,59811.0,0.31172]
[1617335034374,0.0004,59827.0,59811.0,0.31172]
[1617335034569,0.0004,59827.0,59812.0,0.761715]
[1617335034770,0.0004,59827.0,59812.0,0.425]
[1617335034972,0.0004,59827.0,59813.0,0.311709]
[1617335035175,0.0004,59827.0,59813.0,0.775439]
[1617335035372,0.0004,59827.0,59813.0,0.46373]
[1617335035970,0.0004,59827.0,59818.0,0.13076267]
[1617335036774,0.0004,59827.0,59813.0,0.46373]
[1617335036977,0.0004,59827.0,59810.0,2.54]
[1617335036978,0.41,59813.0,59810.0,2.54]
[1617335037174,0.41,59813.0,59811.0,0.311717]
[1617335037774,0.41,59813.0,59810.0,2.54]
[1617335037972,0.41,59813.0,59811.0,0.311727]
[1617335038173,0.41,59813.0,59812.0,2.12]
[1617335038374,0.41,59813.0,59807.0,0.09966619]
[1617335038998,0.211066,59818.0,59807.0,0.09966619]
[1617335039602,0.211066,59818.0,59807.0,1.05572255]
[1617335039802,0.211066,59818.0,59808.0,0.311743]
[1617335040799,0.211066,59818.0,59807.0,0.09966619]
[1617335042430,0.206066,59818.0,59807.0,0.09966619]
[1617335043130,0.206066,59818.0,59808.0,0.311742]
[1617335043534,0.206066,59818.0,59809.0,0.156]
[1617335043948,0.206066,59818.0,59810.0,0.311731]
[1617335044148,0.206066,59818.0,59809.0,0.156]
[1617335044351,0.206066,59818.0,59807.0,0.09966619]
[1617335044560,0.206066,59818.0,59803.0,1.0]
[1617335044561,0.1,59814.0,59803.0,1.0]
[1617335044760,0.095,59814.0,59803.0,1.0]
[1617335045753,0.25,59814.0,59803.0,1.0]
[1617335045960,0.165,59806.0,59803.0,1.0]
[1617335046157,2.72,59804.0,59803.0,1.0]
[1617335046374,3.206435,59804.0,59803.0,1.0]
[1617335046575,0.706435,59804.0,59803.0,1.0]
[1617335047214,0.486435,59804.0,59803.0,1.0]
[1617335047614,0.1,59804.0,59803.0,1.0]
[1617335048018,0.1,59804.0,59794.0,0.5841]
[1617335048418,0.1,59804.0,59795.0,0.311822]
[1617335048617,0.301138,59800.0,59794.0,0.5841]
[1617335048818,0.6732971,59803.0,59794.0,0.5841]
[1617335049016,0.334868,59803.0,59794.0,0.5841]
[1617335049218,0.1,59797.0,59794.0,0.5841]
[1617335049419,0.1,59797.0,59795.0,0.311826]
[1617335050616,0.351164,59797.0,59795.0,0.311826]
[1617335050816,0.3384291,59796.0,59795.0,0.311826]
[1617335051018,0.401164,59797.0,59795.0,0.311826]
[1617335051215,0.351164,59797.0,59795.0,0.311826]
[1617335051417,0.346164,59797.0,59795.0,0.311826]
[1617335051624,0.346164,59797.0,59796.0,3.401824]
[1617335052426,0.346164,59797.0,59796.0,0.311824]
[1617335053628,0.820124,59797.0,59794.0,0.5841]
[1617335053827,0.386435,59796.0,59794.0,0.5841]
[1617335054023,0.820124,59797.0,59794.0,0.5841]
[1617335055657,0.095,59797.0,59795.0,0.265]
[1617335055855,0.095,59797.0,59796.0,3.401825]
[1617335057471,0.071588,59797.0,59796.0,3.401825]
[1617335058471,0.021588,59797.0,59796.0,3.401825]
[1617335059495,0.021588,59797.0,59796.0,0.311825]
[1617335060296,0.021588,59797.0,59796.0,1.331825]
[1617335060696,0.021588,59797.0,59796.0,0.311825]
[1617335061964,0.021588,59797.0,59796.0,0.31160333]
[1617335062164,0.021588,59797.0,59794.0,1.5841]
[1617335064159,0.021588,59797.0,59794.0,0.5841]
[1617335065770,0.021588,59797.0,59796.0,3.09]
[1617335065966,0.021588,59797.0,59796.0,4.016603]
[1617335066165,0.251131,59800.0,59797.0,2.43]
[1617335066365,0.251131,59800.0,59798.0,0.211591]
[1617335066565,0.221131,59800.0,59798.0,0.211591]
[1617335066763,0.1,59799.0,59798.0,0.211591]
[1617335067165,0.1,59799.0,59798.0,1.661591]
[1617335067378,0.1,59799.0,59798.0,1.996591]
[1617335068178,0.1,59799.0,59798.0,3.636591]
[1617335068378,0.1,59799.0,59798.0,1.17954397]
[1617335068779,0.1,59799.0,59798.0,0.335]
[1617335068980,0.1,59799.0,59794.0,0.5841]
[1617335069577,0.1,59799.0,59794.0,0.5791]
[1617335075452,0.00292195,59795.0,59794.0,0.5791]
[1617335076054,0.1,59799.0,59794.0,1.5291]
[1617335076055,0.00292068,59796.0,59794.0,1.5291]
[1617335076260,0.251109,59804.0,59794.0,1.5291]
[1617335076455,0.251109,59804.0,59796.0,0.725]
[1617335076657,0.1,59800.0,59796.0,0.725]
[1617335078882,0.00581663,59800.0,59796.0,0.725]
[1617335079278,0.00581663,59800.0,59795.0,3.09]
[1617335079479,0.00081663,59800.0,59795.0,3.09]
[1617335082106,0.00081663,59800.0,59794.0,0.5791]
[1617335083931,0.00081663,59800.0,59794.0,0.5691]
[1617335084931,0.00081663,59800.0,59796.0,1.0]
[1617335085133,0.00081663,59800.0,59797.0,0.235]
[1617335085332,0.00081663,59800.0,59796.0,1.0]
[1617335086157,0.25194863,59800.0,59796.0,1.0]
[1617335089987,0.25194863,59800.0,59795.0,0.04]
[1617335090192,0.00081663,59800.0,59795.0,0.04]
[1617335094817,0.00081663,59800.0,59799.0,3.251]
[1617335095217,0.00081663,59800.0,59799.0,3.74]
[1617335097028,0.00081663,59800.0,59799.0,0.65]
[1617335097828,0.00081663,59800.0,59799.0,2.13]
[1617335098027,0.00081663,59800.0,59799.0,1.48]
[1617335098727,0.00081663,59800.0,59799.0,2.75]
[1617335099355,0.00081663,59800.0,59799.0,1.48]
[1617335099759,0.00081663,59800.0,59799.0,3.09]
[1617335100962,0.00081663,59800.0,59799.0,3.54]
[1617335102585,0.00081663,59800.0,59799.0,3.53]
[1617335103599,0.00081663,59800.0,59799.0,4.74705636]
[1617335103600,6.63e-06,59800.0,59799.0,4.74705636]
[1617335103802,0.00033783,59818.0,59801.0,0.33190836]
[1617335103996,0.00033783,59818.0,59817.0,3.22754177]
[1617335104207,0.00033783,59818.0,59817.0,4.54996812]
[1617335104404,0.00033783,59818.0,59817.0,4.89996812]
[1617335104609,0.00033783,59818.0,59817.0,5.18996812]
[1617335104807,0.0004,59827.0,59817.0,5.18996812]
[1617335105008,0.0004,59827.0,59826.0,0.1374129]
[1617335105210,0.0004,59827.0,59826.0,1.09346926]
[1617335105405,0.0004,59829.0,59827.0,0.95605636]
[1617335105605,0.0004,59829.0,59827.0,1.35605636]
[1617335105808,0.0004,59829.0,59828.0,1.11305636]
[1617335106011,0.03988787,59831.0,59829.0,0.95605636]
[1617335106204,0.03988787,59831.0,59830.0,0.654]
[1617335106406,0.0002,59831.0,59830.0,1.61005636]
[1617335107239,0.0002,59831.0,59830.0,1.71341715]
[1617335107637,0.0002,59831.0,59830.0,1.49341715]
[1617335108036,0.0002,59831.0,59830.0,1.95341715]
[1617335108242,0.0002,59831.0,59830.0,0.58736079]
[1617335109037,0.0002,59831.0,59830.0,0.63736079]
[1617335109236,0.0002,59831.0,59830.0,0.58736079]
[1617335109853,0.0002,59831.0,59830.0,1.54341715]
[1617335110051,0.0002,59831.0,59830.0,0.58736079]
[1617335110457,0.0002,59831.0,59830.0,0.53736079]
[1617335110656,0.0002,59831.0,59830.0,1.04736079]
[1617335111656,0.0002,59831.0,59830.0,1.95341715]
[1617335111857,0.0002,59831.0,59830.0,2.05341715]
[1617335112087,0.0006,59839.0,59831.0,1.41605636]
[1617335112284,0.0006,59839.0,59835.0,0.26097881]
[1617335112886,0.0006,59839.0,59835.0,2.2047396]
[1617335113486,5e-05,59838.0,59835.0,2.2047396]
[1617335113684,5e-05,59838.0,59836.0,0.05]
[1617335113884,5e-05,59838.0,59837.0,0.395]
[1617335116118,5e-05,59838.0,59837.0,0.905]
[1617335116424,0.0006,59844.0,59837.0,0.905]
[1617335116425,5e-05,59846.0,59838.0,0.46]
[1617335116619,5e-05,59846.0,59839.0,0.7]
[1617335117638,5e-05,59846.0,59841.0,0.250899]
[1617335118837,5e-05,59846.0,59845.0,0.162]
[1617335119240,5e-05,59846.0,59839.0,0.65]
[1617335119444,5e-05,59846.0,59836.0,0.10336079]
[1617335120257,5e-05,59846.0,59837.0,0.16]
[1617335120661,5e-05,59846.0,59839.0,0.250908]
[1617335122491,5e-05,59846.0,59838.0,1.0]
[1617335123118,5e-05,59846.0,59839.0,0.36]
[1617335123719,0.00085,59852.0,59840.0,3.09]
[1617335123917,0.00285,59852.0,59840.0,3.09]
[1617335124115,0.00285,59852.0,59841.0,0.16]
[1617335124517,0.53883721,59846.0,59841.0,0.16]
[1617335124717,0.53883721,59846.0,59842.0,0.335]
[1617335125717,0.53883721,59846.0,59840.0,3.09]
[1617335126119,0.53883721,59846.0,59840.0,3.08679173]
[1617335128348,0.53883721,59846.0,59838.0,1.0]
[1617335128349,0.57883721,59846.0,59838.0,1.0]
[1617335128556,0.4934081,59839.0,59838.0,1.0]
[1617335128746,0.3314081,59839.0,59838.0,1.0]
[1617335129143,0.05831,59840.0,59838.0,1.0]
[1617335129541,0.05331,59840.0,59838.0,1.0]
[1617335129744,0.304294,59840.0,59838.0,1.0]
[1617335130562,0.250984,59840.0,59838.0,1.0]
[1617335131365,0.386422,59839.0,59838.0,1.0]
[1617335131765,0.556422,59839.0,59838.0,1.0]
[1617335132568,0.17,59839.0,59838.0,1.0]
[1617335132969,0.05712,59840.0,59838.0,1.0]
[1617335133188,0.2,59843.0,59838.0,1.0]
[1617335134189,0.195,59843.0,59838.0,1.0]
[1617335134392,0.235,59843.0,59838.0,1.0]
[1617335134595,0.195,59843.0,59838.0,1.0]
[1617335134791,0.536422,59842.0,59838.0,1.0]
[1617335135822,0.158,59840.0,59838.0,1.0]
[1617335136020,0.386422,59839.0,59838.0,1.0]
[1617335136421,0.576422,59839.0,59838.0,1.0]
[1617335139267,0.536422,59839.0,59838.0,1.0]
[1617335139470,0.626422,59839.0,59838.0,1.0]
[1617335139671,0.786422,59839.0,59838.0,1.0]
[1617335139866,0.626422,59839.0,59838.0,1.0]
[1617335140468,0.19,59839.0,59838.0,1.0]
[1617335140869,0.666413,59839.0,59838.0,0.99679173]
[1617335141067,0.576413,59839.0,59838.0,0.99679173]
[1617335141870,0.19,59839.0,59838.0,0.99679173]
[1617335142073,0.245,59843.0,59838.0,0.99679173]
[1617335142269,0.195,59843.0,59838.0,0.99679173]
[1617335143895,0.195,59843.0,59839.0,0.039955]
[1617335144299,0.195,59843.0,59838.0,0.99679173]
[1617335144503,0.145,59842.0,59838.0,0.99679173]
[1617335145103,0.3301542,59841.0,59838.0,0.99679173]
[1617335146105,0.04,59840.0,59838.0,0.99679173]
[1617335146327,3.631413,59839.0,59838.0,0.99679173]
[1617335146522,3.671413,59839.0,59838.0,0.99679173]
[1617335146721,4.431413,59839.0,59838.0,0.99679173]
[1617335146923,4.431413,59839.0,59838.0,0.00679173]
[1617335147122,4.731413,59839.0,59838.0,0.00679173]
[1617335147521,5.38135674,59839.0,59838.0,0.00679173]
[1617335147719,4.97635674,59839.0,59838.0,0.00679173]
[1617335148518,1.49635674,59839.0,59838.0,0.00679173]
[1617335148726,1.096413,59839.0,59838.0,0.00679173]
[1617335148969,0.426413,59839.0,59838.0,0.00679173]
[1617335149965,0.386413,59839.0,59838.0,0.00679173]
[1617335150169,1.366413,59839.0,59838.0,0.00679173]
[1617335150364,0.561413,59839.0,59838.0,0.00679173]
[1617335151168,1.801413,59839.0,59838.0,0.00679173]
[1617335151769,0.561413,59839.0,59838.0,0.00679173]
[1617335152176,1.501413,59839.0,59838.0,0.00679173]
[1617335152371,0.561413,59839.0,59838.0,0.00679173]
[1617335152975,1.118283,59839.0,59838.0,0.00679173]
[1617335153177,4.62223674,59839.0,59838.0,0.00679173]
[1617335153375,4.66223674,59839.0,59838.0,0.00679173]
[1617335154214,4.96223674,59839.0,59838.0,0.00679173]
[1617335154417,5.21223674,59839.0,59838.0,0.00679173]
[1617335155216,5.21223674,59839.0,59838.0,0.00358346]
[1617335155420,4.96223674,59839.0,59838.0,0.00358346]
[1617335155615,5.21223674,59839.0,59838.0,0.00358346]
[1617335156418,4.562293,59839.0,59838.0,0.00358346]
[1617335156615,4.103293,59839.0,59838.0,0.00358346]
[1617335157020,3.1867405,59839.0,59838.0,0.00358346]
[1617335159024,4.6167405,59839.0,59838.0,0.00358346]
[1617335159225,3.1867405,59839.0,59838.0,0.00358346]
[1617335159451,1.4867405,59839.0,59838.0,0.00358346]
[1617335160053,2.2667405,59839.0,59838.0,0.00358346]
[1617335160251,1.4867405,59839.0,59838.0,0.00358346]
[1617335160452,1.4367405,59839.0,59838.0,0.00358346]
[1617335160655,1.5687505,59839.0,59838.0,0.00358346]
[1617335160853,1.4726905,59839.0,59838.0,0.00358346]
[1617335161053,2.7626905,59839.0,59838.0,0.00358346]
[1617335161251,1.5126905,59839.0,59838.0,0.00358346]
[1617335162075,2.9026905,59839.0,59838.0,0.00358346]
[1617335163074,1.91263424,59839.0,59838.0,0.00358346]
[1617335163276,1.5126905,59839.0,59838.0,0.00358346]
[1617335163476,1.059223,59839.0,59838.0,0.00358346]
[1617335164073,2.449223,59839.0,59838.0,0.00358346]
[1617335164275,1.08879914,59839.0,59838.0,0.00358346]
[1617335164475,1.3327305,59839.0,59838.0,0.00358346]
[1617335166100,2.2727305,59839.0,59838.0,0.00358346]
[1617335166299,2.4277305,59839.0,59838.0,0.00358346]
[1617335166499,2.4573067,59839.0,59838.0,0.00358346]
[1617335167114,5.07657044,59839.0,59838.0,0.00358346]
[1617335167936,2.92657044,59839.0,59838.0,0.00358346]
[1617335168134,2.5266267,59839.0,59838.0,0.00358346]
[1617335169135,2.3666267,59839.0,59838.0,0.00358346]
[1617335169534,2.2973067,59839.0,59838.0,0.00358346]
[1617335169961,3.6973067,59839.0,59838.0,0.00358346]
[1617335170160,4.33725044,59839.0,59838.0,0.00358346]
[1617335170961,4.73825044,59839.0,59838.0,0.00358346]
[1617335171163,3.16127044,59839.0,59838.0,0.00358346]
[1617335171362,2.7613267,59839.0,59838.0,0.00358346]
[1617335171963,2.1878792,59839.0,59838.0,0.00358346]
[1617335172165,2.0268792,59839.0,59838.0,0.00358346]
[1617335172576,1.9538592,59839.0,59838.0,0.00358346]
[1617335172974,4.0598592,59839.0,59838.0,0.00358346]
[1617335173574,1.9538592,59839.0,59838.0,0.00358346]
[1617335174779,0.33188416,59837.0,59821.0,0.57568346]
[1617335174980,0.125516,59835.0,59825.0,0.0052]
[1617335175202,0.664,59830.0,59821.0,0.57568346]
[1617335175407,0.75829716,59829.0,59821.0,0.57568346]
[1617335175605,0.245,59828.0,59821.0,0.57568346]
[1617335175810,2.452,59822.0,59821.0,0.57568346]
[1617335176004,3.296763,59822.0,59817.0,0.05089393]
[1617335176209,0.88384816,59821.0,59817.0,0.05089393]
[1617335176409,0.00303724,59817.0,59808.0,1.0]
[1617335176614,3.209,59809.0,59808.0,1.0]
[1617335176813,3.209,59809.0,59808.0,0.99]
[1617335176814,5.14848674,59809.0,59808.0,0.99]
[1617335177010,6.19965774,59809.0,59808.0,0.99]
[1617335177210,6.49965774,59809.0,59808.0,0.99]
[1617335177406,6.84982298,59809.0,59808.0,0.99]
[1617335177605,6.84982298,59809.0,59808.0,0.0001]
[1617335177842,0.19258662,59804.0,59799.0,0.059602]
[1617335178036,3.476413,59800.0,59799.0,0.059602]
[1617335178238,4.507365,59800.0,59799.0,0.059602]
[1617335178441,5.332365,59800.0,59799.0,0.045802]
[1617335178636,5.932365,59800.0,59799.0,0.045802]
[1617335179439,6.932365,59800.0,59799.0,2e-06]
[1617335179636,0.35320248,59799.0,59782.0,0.00024]
[1617335179834,0.00303724,59789.0,59782.0,0.00024]
[1617335180033,0.2232823,59784.0,59782.0,0.00024]
[1617335180232,3.99416674,59783.0,59782.0,0.00024]
[1617335180448,4.71916674,59783.0,59782.0,0.00024]
[1617335180651,5.02041774,59783.0,59782.0,0.00024]
[1617335182148,1.93041774,59783.0,59782.0,0.00024]
[1617335182749,4.39041774,59783.0,59782.0,0.00024]
[1617335183959,0.00303724,59781.0,59762.0,0.95605636]
[1617335184159,0.251254,59772.0,59767.0,0.0058]
[1617335184365,0.251254,59772.0,59768.0,0.95605636]
[1617335184558,0.751254,59772.0,59769.0,0.04008]
[1617335184759,0.751254,59772.0,59770.0,0.95605636]
[1617335185561,0.751254,59772.0,59768.0,0.95605636]
[1617335185789,0.751254,59772.0,59769.0,0.040081]
[1617335186195,0.751254,59772.0,59770.0,0.95605636]
[1617335186390,0.5,59772.0,59770.0,0.95605636]
[1617335186593,0.5,59772.0,59771.0,2.910079]
[1617335186791,0.5,59772.0,59771.0,3.86613536]
[1617335187189,0.5,59772.0,59771.0,0.040079]
[1617335187391,0.5,59772.0,59767.0,0.0058]
[1617335187592,0.5,59772.0,59768.0,0.95605636]
[1617335187791,0.5,59772.0,59770.0,0.15]
[1617335187991,0.5,59772.0,59771.0,0.95605636]
[1617335188188,0.5,59772.0,59771.0,0.99613536]
[1617335188812,0.5,59772.0,59771.0,2.21113536]
[1617335189010,0.5,59772.0,59771.0,1.28113536]
[1617335189412,0.5,59772.0,59771.0,0.99613536]
[1617335189614,0.5,59772.0,59771.0,0.040079]
[1617335189813,0.5,59772.0,59767.0,0.0058]
[1617335190015,0.5,59772.0,59767.0,0.96185636]
[1617335190216,0.5,59772.0,59768.0,0.040081]
[1617335190415,0.5,59772.0,59767.0,0.0058]
[1617335190416,0.386413,59771.0,59769.0,0.95605636]
[1617335190617,0.751256,59772.0,59769.0,0.95605636]
[1617335190817,0.5,59772.0,59769.0,0.95605636]
[1617335191034,0.5,59772.0,59761.0,0.06101603]
[1617335191230,0.5,59772.0,59762.0,1.00054336]
[1617335191435,0.5,59772.0,59763.0,0.95605636]
[1617335191631,0.5,59772.0,59764.0,0.040088]
[1617335191831,0.5,59772.0,59765.0,0.95605636]
[1617335192034,0.5,59772.0,59766.0,0.040086]
[1617335192234,0.55,59772.0,59766.0,0.040086]
[1617335192436,0.5,59772.0,59766.0,0.95605636]
[1617335192634,0.05423,59773.0,59767.0,0.040084]
[1617335192838,0.5,59766.0,59761.0,0.06501603]
[1617335193039,0.5,59766.0,59762.0,0.040087]
[1617335193238,0.87464,59766.0,59762.0,0.040087]
[1617335193866,3.425108,59762.0,59761.0,0.01024]
[1617335194063,4.10005174,59762.0,59761.0,0.01024]
[1617335194262,4.15005174,59762.0,59761.0,0.01024]
[1617335194458,1.4,59761.0,59760.0,0.98524]
[1617335194663,3.985,59761.0,59760.0,0.97524]
[1617335194867,3.985,59761.0,59747.0,0.017]
[1617335194868,0.35016524,59758.0,59747.0,0.017]
[1617335195062,0.3283303,59751.0,59747.0,0.017]
[1617335195262,0.5,59750.0,59747.0,0.017]
[1617335195463,0.285,59749.0,59747.0,0.017]
[1617335195658,0.73494374,59749.0,59747.0,0.017]
[1617335196891,4.35868704,59748.0,59747.0,0.017]
[1617335197300,5.33868704,59748.0,59747.0,0.017]
[1617335197496,4.62394374,59748.0,59747.0,0.017]
[1617335197695,4.62394374,59748.0,59747.0,0.06785307]
[1617335198697,5.01035674,59748.0,59747.0,0.06785307]
[1617335198955,4.85635674,59748.0,59747.0,0.06785307]
[1617335199156,4.46994374,59748.0,59747.0,0.06785307]
[1617335199357,4.85635674,59748.0,59747.0,0.06785307]
[1617335199555,4.85135674,59748.0,59747.0,0.06785307]
[1617335199758,1.37494374,59748.0,59747.0,0.06785307]
[1617335199958,0.05,59748.0,59747.0,0.06785307]
[1617335200155,3.40135674,59748.0,59747.0,0.06785307]
[1617335200559,3.45135674,59748.0,59747.0,0.06785307]
[1617335200764,0.39494374,59748.0,59747.0,0.06785307]
[1617335200962,0.22,59748.0,59747.0,0.06785307]
[1617335201164,0.39494374,59758.0,59747.0,0.06785307]
[1617335201363,0.00303724,59757.0,59747.0,0.06785307]
[1617335201563,0.39494374,59760.0,59748.0,0.95605636]
[1617335201768,0.25131,59763.0,59749.0,0.044721]
[1617335201963,0.25131,59763.0,59753.0,0.0054]
[1617335202166,0.00303724,59772.0,59753.0,0.4337]
[1617335202562,0.00303724,59772.0,59753.0,0.4317]
[1617335203359,0.002,59770.0,59753.0,0.4317]
[1617335203761,0.251283,59769.0,59753.0,0.4317]
[1617335204164,0.301283,59769.0,59753.0,0.4317]
[1617335204969,0.596413,59768.0,59753.0,0.4317]
[1617335205167,0.251303,59764.0,59753.0,0.0034]
[1617335205367,0.386413,59763.0,59753.0,0.0034]
[1617335205568,0.436413,59763.0,59747.0,0.06785307]
[1617335205768,0.05,59763.0,59747.0,0.06785307]
[1617335205970,0.05,59763.0,59748.0,0.040114]
[1617335206170,0.3283303,59762.0,59749.0,0.004]
[1617335206373,0.251321,59758.0,59747.0,0.06785307]
[1617335206787,0.301321,59758.0,59748.0,0.040117]
[1617335207991,0.251321,59758.0,59748.0,0.040117]
[1617335208995,0.251321,59758.0,59747.0,0.07185307]
[1617335209616,0.301321,59758.0,59747.0,0.07185307]
[1617335210014,0.251328,59755.0,59747.0,0.07185307]
[1617335210213,0.251328,59755.0,59748.0,0.040116]
[1617335210416,0.05,59758.0,59748.0,0.040116]
[1617335210618,0.002,59761.0,59748.0,0.040116]
[1617335210818,0.002,59761.0,59748.0,0.044116]
[1617335211013,0.002,59761.0,59747.0,0.06785307]
[1617335211214,0.251328,59755.0,59749.0,0.0042]
[1617335211418,0.251328,59755.0,59750.0,0.040113]
[1617335212451,0.251328,59755.0,59749.0,0.0042]
[1617335212652,0.251328,59755.0,59750.0,0.040115]
[1617335212858,0.3283303,59754.0,59747.0,0.06785307]
[1617335213253,0.19,59753.0,59747.0,0.06785307]
[1617335213454,0.05,59755.0,59748.0,0.040117]
[1617335213658,0.05,59755.0,59748.0,0.035117]
[1617335214053,0.002,59757.0,59748.0,0.035117]
[1617335214251,0.3303303,59763.0,59748.0,0.039117]
[1617335214451,0.002,59763.0,59747.0,0.06785307]
[1617335214691,0.251337,59753.0,59747.0,0.06785307]
[1617335216093,0.711947,59753.0,59747.0,0.06785307]
[1617335216291,0.145,59752.0,59747.0,0.06785307]
[1617335216685,0.386442,59751.0,59747.0,0.017]
[1617335216884,4.101442,59748.0,59747.0,0.017]
[1617335217311,4.151442,59748.0,59747.0,0.017]
[1617335218512,4.54638574,59748.0,59747.0,0.017]
[1617335218713,4.58638574,59748.0,59747.0,0.017]
[1617335219916,4.191442,59748.0,59747.0,0.017]
[1617335220113,4.58638574,59748.0,59747.0,0.017]
[1617335220513,4.191442,59748.0,59747.0,0.017]
[1617335222315,5.42367982,59748.0,59747.0,0.017]
[1617335223334,5.02873608,59748.0,59747.0,0.017]
[1617335223533,5.42367982,59748.0,59747.0,0.017]
[1617335224137,0.3283303,59747.0,59734.0,0.0002]
[1617335224337,0.251418,59741.0,59734.0,0.0002]
[1617335224537,0.386442,59740.0,59734.0,0.0002]
[1617335225373,0.789672,59740.0,59734.0,0.0002]
[1617335225575,0.285,59739.0,59734.0,0.0002]
[1617335225772,0.63786,59738.0,59734.0,0.0002]
[1617335226178,0.551442,59735.0,59734.0,0.0002]
[1617335226380,0.591442,59735.0,59734.0,0.0002]
[1617335226576,1.58660724,59735.0,59734.0,0.0002]
[1617335226971,1.83660724,59735.0,59734.0,0.0002]
[1617335227399,1.071442,59735.0,59716.0,0.574]
[1617335227590,0.84636754,59734.0,59718.0,0.004]
[1617335227800,0.82138574,59733.0,59718.0,0.004]
[1617335227996,0.82138574,59733.0,59716.0,0.574]
[1617335227997,0.78298098,59732.0,59716.0,0.574]
[1617335228198,0.002,59730.0,59716.0,0.574]
[1617335228396,0.3283303,59728.0,59716.0,0.574]
[1617335228595,0.39494374,59726.0,59716.0,0.574]
[1617335228801,0.14,59724.0,59716.0,0.574]
[1617335229000,0.251484,59720.0,59716.0,0.574]
[1617335229400,0.251484,59720.0,59717.0,0.95605636]
[1617335229597,0.251484,59720.0,59718.0,0.035166]
[1617335229795,0.251484,59720.0,59716.0,0.574]
[1617335229994,0.251484,59720.0,59716.0,1.53005636]
[1617335230195,0.251484,59720.0,59717.0,0.035169]
[1617335230424,0.251484,59720.0,59716.0,0.574]
[1617335231021,0.251484,59720.0,59716.0,0.572]
[1617335231222,0.251484,59720.0,59716.0,1.5305927]
[1617335231424,0.251484,59720.0,59717.0,0.03517]
[1617335231624,0.251484,59720.0,59717.0,0.99122636]
[1617335231825,0.251484,59720.0,59717.0,0.03517]
[1617335232223,0.251484,59720.0,59716.0,0.57453634]
[1617335232424,0.251484,59720.0,59717.0,0.03517]
[1617335232625,0.251453,59724.0,59717.0,0.03517]
[1617335232824,0.251453,59724.0,59716.0,0.57453634]
[1617335233051,0.301453,59724.0,59716.0,0.57453634]
[1617335233255,0.385277,59729.0,59723.0,0.153]
[1617335233256,0.335277,59729.0,59723.0,0.153]
[1617335233455,0.335277,59729.0,59717.0,0.95605636]
[1617335233650,0.335277,59729.0,59720.0,0.004]
[1617335234260,0.335277,59729.0,59716.0,0.57453634]
[1617335234453,0.335277,59729.0,59717.0,0.95605636]
[1617335234655,0.25144,59728.0,59717.0,0.95605636]
[1617335235871,0.25144,59728.0,59716.0,1.5305927]
[1617335236074,0.25144,59728.0,59716.0,0.57453634]
[1617335237072,0.386442,59727.0,59716.0,0.57453634]
[1617335237273,0.25146,59722.0,59716.0,0.57453634]
[1617335237674,0.30146,59722.0,59716.0,0.57453634]
[1617335237875,0.05,59722.0,59716.0,0.57453634]
[1617335238076,0.18,59726.0,59716.0,0.57453634]
[1617335238077,0.164,59724.0,59716.0,0.57453634]
[1617335238301,0.51516,59724.0,59716.0,0.57453634]
[1617335238502,0.145,59722.0,59716.0,0.57453634]
[1617335238703,0.195,59722.0,59716.0,0.57453634]
[1617335239299,0.251472,59720.0,59716.0,0.57453634]
[1617335239899,0.386442,59719.0,59716.0,0.57453634]
[1617335240302,0.436442,59719.0,59716.0,0.57453634]
[1617335240698,0.251487,59718.0,59716.0,0.57453634]
[1617335241926,0.251487,59718.0,59716.0,1.5305927]
[1617335242126,0.251487,59718.0,59717.0,0.775171]
[1617335242342,0.3283303,59721.0,59717.0,0.035171]
[1617335242546,0.05,59722.0,59716.0,0.57453634]
[1617335242755,0.04,59725.0,59716.0,0.57453634]
[1617335242940,0.155,59724.0,59716.0,0.57453634]
[1617335243343,0.205,59724.0,59716.0,0.57453634]
[1617335243552,0.2,59724.0,59716.0,0.57453634]
[1617335243755,0.251499,59720.0,59716.0,0.57453634]
[1617335244153,0.386442,59719.0,59716.0,0.57453634]